fUST/lending_fUST_20241112
["ID","MTS","AMOUNT","RATE_DAILY","PERIOD"]
[342001124,1731355854635,-1000.0,0.00022465,2]
[342001125,1731355854644,-1000.0,0.00022465,2]
[342001126,1731355854653,-1000.0,0.00022465,2]
[342001127,1731355854662,-1000.0,0.00022465,2]
[342001128,1731355854672,-1000.0,0.00022465,2]
[342001129,1731355854682,-1000.0,0.00022465,2]
[342001130,1731355854692,-1000.0,0.00022465,2]
[342001131,1731355854701,-1000.0,0.00022465,2]
[342001132,1731355854711,-1000.0,0.00022465,2]
[342001133,1731355854720,-1000.0,0.00022465,2]
[342001134,1731355854730,-265.093655,0.00022465,7]
[342001135,1731355854742,-1000.0,0.00022465,2]
[342001136,1731355854751,-1000.0,0.00022465,2]
[342001137,1731355854760,-1000.0,0.00022465,2]
[342001138,1731355854772,-1000.0,0.00022465,2]
[342001139,1731355854781,-1000.0,0.00022465,2]
[342001140,1731355854791,-1000.0,0.00022465,2]
[342001141,1731355854800,-1000.0,0.00022465,2]
[342001142,1731355854811,-1000.0,0.00022465,2]
[342001143,1731355854822,-922.397241,0.00022465,2]
[342001144,1731355854831,-265.093655,0.00022465,7]
[342001145,1731355854840,-557.33,0.00022465,2]
[342001146,1731355854850,-500.0,0.00022465,2]
[342001147,1731355854859,-1298.81,0.00022465,2]
[342001148,1731355854869,-578.39,0.00022465,2]
[342001149,1731355854878,-500.0,0.00022465,2]
[342001150,1731355854887,-500.0,0.00022465,2]
[342001151,1731355854896,-198.744429,0.00022465,7]
[342001152,1731355854905,-500.0,0.00022465,2]
[342001153,1731355854917,-198.744429,0.00022465,7]
[342001154,1731355854929,-500.0,0.00022465,2]
[342001155,1731355854938,-500.0,0.00022465,2]
[342001156,1731355854947,-500.0,0.00022465,2]
[342001157,1731355854958,-1424.44,0.00022465,2]
[342001158,1731355854968,-500.0,0.00022465,2]
[342001159,1731355854977,-500.0,0.00022465,2]
[342001160,1731355854986,-924.32,0.00022465,2]
[342001161,1731355854995,-500.0,0.00022465,2]
[342001162,1731355855007,-538.71,0.00022465,2]
[342001163,1731355855019,-151.0,0.00022465,7]
[342001164,1731355855029,-151.0,0.00022465,7]
[342001165,1731355855038,-298.981892,0.00022465,7]
[342001166,1731355855047,-500.0,0.00022465,2]
[342001167,1731355855057,-866.81,0.00022465,2]
[342001168,1731355855066,-500.0,0.00022465,2]
[342001169,1731355855075,-500.0,0.00022465,2]
[342001170,1731355855084,-258.965566,0.00022465,7]
[342001171,1731355855093,-3916.0,0.00022465,2]
[342001172,1731355855102,-500.0,0.00022465,2]
[342001173,1731355855111,-979.82,0.00022465,2]
[342001174,1731355855120,-258.965566,0.00022465,7]
[342001175,1731355855129,-773.57,0.00022465,2]
[342001176,1731355855138,-497.98100556,0.00022465,2]
[342001177,1731355855148,-500.0,0.00022465,2]
[342001178,1731355855157,-627.61,0.00022465,2]
[342001179,1731355855166,-1423.21,0.00022465,2]
[342001180,1731355855176,-1410.09,0.00022465,2]
[342001181,1731355855185,-500.0,0.00022465,2]
[342001182,1731355855194,-500.0,0.00022465,2]
[342001183,1731355855204,-1799.86,0.00022465,2]
[342001184,1731355855214,-500.0,0.00022465,2]
[342001185,1731355855223,-500.0,0.00022465,2]
[342001186,1731355855232,-500.0,0.00022465,2]
[342001187,1731355855241,-500.0,0.00022465,2]
[342001188,1731355855251,-500.0,0.00022465,2]
[342001189,1731355855260,-500.0,0.00022465,2]
[342001190,1731355855274,-151.0,0.00022465,7]
[342001191,1731355855287,-583.53,0.00022465,2]
[342001192,1731355855297,-500.0,0.00022465,2]
[342001193,1731355855307,-500.0,0.00022465,2]
[342001194,1731355855316,-500.0,0.00022465,2]
[342001195,1731355855326,-500.0,0.00022465,2]
[342001196,1731355855335,-151.0,0.00022465,7]
[342001197,1731355855344,-502.17,0.00022465,2]
[342001198,1731355855353,-500.0,0.00022465,2]
[342001199,1731355855362,-635.42,0.00022465,2]
[342001200,1731355855371,-500.0,0.00022465,2]
[342001201,1731355855381,-4457.62,0.00022465,2]
[342001202,1731355855391,-151.0,0.00022465,7]
[342001203,1731355855401,-500.0,0.00022465,2]
[342001204,1731355855411,-1959.14,0.00022465,2]
[342001205,1731355855421,-151.0,0.00022465,7]
[342001206,1731355855430,-151.0,0.00022465,7]
[342001207,1731355855439,-500.0,0.00022465,2]
[342001208,1731355855449,-500.0,0.00022465,2]
[342001209,1731355855458,-309.45196189,0.00022465,2]
[342001210,1731355855467,-151.0,0.00022465,7]
[342001211,1731355855477,-797.46,0.00022465,2]
[342001212,1731355855486,-151.0,0.00022465,7]
[342001213,1731355855496,-151.0,0.00022465,7]
[342001214,1731355855504,-151.0,0.00022465,7]
[342001215,1731355855516,-151.0,0.00022465,7]
[342001216,1731355855525,-628.65,0.00022465,2]
[342001217,1731355855534,-500.0,0.00022465,2]
[342001218,1731355855543,-1372.25,0.00022465,2]
[342001219,1731355855553,-151.0,0.00022465,7]
[342001220,1731355855562,-151.0,0.00022465,7]
[342001221,1731355855572,-500.0,0.00022465,2]
[342001222,1731355855581,-596.13640721,0.00022465,2]
[342001223,1731355855590,-533.77,0.00022465,2]
[342001224,1731355855602,-151.0,0.00022465,7]
[342001225,1731355855611,-151.0,0.00022465,7]
[342001226,1731355855621,-539.98448942,0.00022465,2]
[342001227,1731355855631,-210.887696,0.00022465,7]
[342001228,1731355855640,-500.0,0.00022465,2]
[342001229,1731355855650,-775.44,0.00022465,2]
[342001230,1731355855659,-500.0,0.00022465,2]
[342001231,1731355855669,-210.887696,0.00022465,7]
[342001232,1731355855678,-1264.27,0.00022465,2]
[342001233,1731355855687,-500.0,0.00022465,2]
[342001234,1731355855696,-2436.92,0.00022465,2]
[342001235,1731355855706,-936.67,0.00022465,2]
[342001236,1731355855715,-500.0,0.00022465,2]
[342001237,1731355855724,-500.0,0.00022465,2]
[342001238,1731355855733,-151.0,0.00022465,7]
[342001239,1731355855742,-500.0,0.00022465,2]
[342001240,1731355855752,-500.0,0.00022465,2]
[342001241,1731355855761,-2021.65,0.00022465,2]
[342001242,1731355855774,-1853.63,0.00022465,2]
[342001243,1731355855783,-500.0,0.00022465,2]
[342001244,1731355855792,-500.0,0.00022465,2]
[342001245,1731355855801,-500.0,0.00022465,2]
[342001246,1731355855810,-500.0,0.00022465,2]
[342001247,1731355855820,-500.0,0.00022465,2]
[342001248,1731355855830,-5738.72,0.00022465,2]
[342001249,1731355855840,-500.0,0.00022465,2]
[342001250,1731355855850,-500.0,0.00022465,2]
[342001251,1731355855859,-500.0,0.00022465,2]
[342001252,1731355855869,-500.0,0.00022465,2]
[342001253,1731355855879,-518.12480847,0.00022465,2]
[342001254,1731355855889,-1021.15,0.00022465,2]
[342001255,1731355855902,-500.0,0.00022465,2]
[342001256,1731355855914,-500.0,0.00022465,2]
[342001257,1731355855923,-500.0,0.00022465,2]
[342001258,1731355855932,-500.0,0.00022465,2]
[342001259,1731355855942,-500.0,0.00022465,2]
[342001260,1731355855951,-500.0,0.00022465,2]
[342001261,1731355855961,-500.0,0.00022465,2]
[342001262,1731355855971,-500.0,0.00022465,2]
[342001263,1731355855980,-184.92990615,0.00022465,2]
[342001264,1731355855990,-500.0,0.00022465,2]
[342001265,1731355856000,-500.0,0.00022465,2]
[342001266,1731355856010,-500.0,0.00022465,2]
[342001267,1731355856022,-183.890743,0.00022465,2]
[342001268,1731355856032,-4862.85,0.00022465,2]
[342001269,1731355856041,-183.890743,0.00022465,2]
[342001270,1731355856051,-19539.58,0.00022465,2]
[342001271,1731355856060,-500.0,0.00022465,2]
[342001272,1731355856069,-500.0,0.00022465,2]
[342001273,1731355856079,-500.0,0.00022465,2]
[342001274,1731355856088,-500.0,0.00022473,2]
[342001275,1731355856098,-500.0,0.00022473,2]
[342001276,1731355856107,-501.98139665,0.00022473,2]
[342001277,1731355856117,-500.0,0.00022473,2]
[342001278,1731355856127,-151.0,0.00022473,7]
[342001279,1731355856136,-151.0,0.00022473,7]
[342001280,1731355856146,-151.0,0.00022473,7]
[342001281,1731355856156,-151.0,0.00022473,7]
[342001282,1731355856165,-151.0,0.00022473,7]
[342001283,1731355856175,-5924.81575387,0.000226,2]
[342001284,1731355856184,-18242.00820378,0.000226,2]
[342001285,1731355856193,-151.0,0.000226,7]
[342001286,1731355856203,-151.0,0.000226,7]
[342001287,1731355856213,-151.0,0.000226,7]
[342001288,1731355856222,-151.0,0.000226,7]
[342001289,1731355856231,-1046.927828,0.000226,7]
[342001290,1731355856241,-1046.927828,0.000226,7]
[342001291,1731355856251,-347.700268,0.000226,7]
[342001292,1731355856260,-347.700268,0.000226,7]
[342001293,1731355856272,-151.0,0.000226,7]
[342001294,1731355856282,-163.160283,0.000226,7]
[342001295,1731355856291,-210.887696,0.000226,7]
[342001296,1731355856301,-210.887696,0.000226,7]
[342001297,1731355856310,-151.0,0.000226,7]
[342001298,1731355856319,-183.890743,0.000226,2]
[342001299,1731355856329,-183.890743,0.000226,2]
[342001300,1731355856338,-551.595782,0.000227,7]
[342001301,1731355856347,-151.0,0.00022739,7]
[342001302,1731355856356,-151.0,0.00022739,7]
[342001303,1731355856366,-500.0,0.00022739,2]
[342001304,1731355856375,-500.0,0.00022739,2]
[342001305,1731355856385,-500.0,0.00022739,2]
[342001306,1731355856394,-500.0,0.00022739,2]
[342001307,1731355856404,-500.0,0.00022739,2]
[342001308,1731355856413,-500.0,0.00022739,2]
[342001309,1731355856423,-500.0,0.00022739,2]
[342001310,1731355856434,-151.0,0.00022739,7]
[342001311,1731355856444,-151.0,0.00022739,7]
[342001312,1731355856455,-151.0,0.00022739,7]
[342001313,1731355856465,-151.0,0.00022739,7]
[342001314,1731355856475,-251.09161348,0.00022739,2]
[342001315,1731355856485,-477.07650235,0.00022739,2]
[342001316,1731355856495,-321.20973122,0.00022739,2]
[342001317,1731355856504,-500.0,0.00022739,2]
[342001318,1731355856517,-568.8,0.00022739,2]
[342001319,1731355856529,-151.0,0.00022739,3]
[342001320,1731355856538,-151.0,0.00022739,7]
[342001321,1731355856547,-151.0,0.00022739,3]
[342001322,1731355856557,-151.0,0.00022739,7]
[342001323,1731355856566,-151.0,0.00022739,7]
[342001324,1731355856576,-151.0,0.00022739,7]
[342001325,1731355856586,-283.574982,0.00022739,7]
[342001326,1731355856595,-500.0,0.00022739,2]
[342001327,1731355856605,-500.0,0.00022739,2]
[342001328,1731355856614,-841.82,0.00022739,2]
[342001329,1731355856624,-500.0,0.00022739,2]
[342001330,1731355856633,-500.0,0.00022739,2]
[342001331,1731355856642,-500.0,0.00022739,2]
[342001332,1731355856651,-381.71737911,0.00022739,2]
[342001333,1731355856661,-500.0,0.00022739,2]
[342001334,1731355856670,-267.21125321,0.00022739,2]
[342001335,1731355856787,-500.0,0.00022739,2]
[342001336,1731355856796,-500.0,0.00022739,2]
[342001337,1731355856806,-500.0,0.00022739,2]
[342001338,1731355856815,-500.0,0.00022739,2]
[342001339,1731355856824,-500.0,0.00022739,2]
[342001340,1731355856833,-201.79038729,0.00022739,2]
[342001341,1731355856842,-665.31,0.00022739,2]
[342001342,1731355856851,-500.0,0.00022739,2]
[342001343,1731355856861,-500.0,0.00022739,2]
[342001344,1731355856870,-500.0,0.00022739,2]
[342001345,1731355856879,-500.0,0.00022739,2]
[342001346,1731355856888,-500.0,0.00022739,2]
[342001347,1731355856898,-500.0,0.00022739,2]
[342001348,1731355856908,-151.0,0.00022739,7]
[342001349,1731355856917,-481.092244,0.00022739,7]
[342001350,1731355856929,-481.092244,0.00022739,7]
[342001351,1731355856939,-481.092244,0.00022739,7]
[342001352,1731355856948,-481.092244,0.00022739,7]
[342001353,1731355856959,-500.0,0.00022739,2]
[342001354,1731355856969,-500.0,0.00022739,2]
[342001355,1731355856979,-564.96791943,0.00022739,2]
[342001356,1731355856989,-2252.85,0.00022739,2]
[342001357,1731355857001,-500.0,0.00022739,2]
[342001358,1731355857011,-1046.927828,0.00022739,7]
[342001359,1731355857025,-730.29,0.00022739,2]
[342001360,1731355857035,-1046.927828,0.00022739,7]
[342001361,1731355857045,-500.0,0.00022739,2]
[342001362,1731355857056,-151.0,0.00022739,7]
[342001363,1731355857067,-151.0,0.00022739,7]
[342001364,1731355857077,-500.0,0.00022739,2]
[342001365,1731355857087,-500.0,0.00022739,2]
[342001366,1731355857097,-500.0,0.00022739,2]
[342001367,1731355857106,-347.700268,0.00022739,7]
[342001368,1731355857116,-551.595782,0.00022739,7]
[342001369,1731355857125,-500.0,0.00022739,2]
[342001370,1731355857135,-967.53,0.00022739,2]
[342001371,1731355857144,-500.0,0.00022739,2]
[342001372,1731355857153,-151.0,0.00022739,7]
[342001373,1731355857163,-151.0,0.00022739,7]
[342001374,1731355857172,-500.0,0.00022739,2]
[342001375,1731355857182,-347.700268,0.00022739,7]
[342001376,1731355857191,-551.595782,0.00022739,7]
[342001377,1731355857200,-151.0,0.00022739,7]
[342001378,1731355857210,-151.0,0.00022739,7]
[342001379,1731355857219,-1170.42,0.00022739,2]
[342001380,1731355857229,-500.0,0.00022739,2]
[342001381,1731355857238,-500.0,0.00022739,2]
[342001382,1731355857247,-500.0,0.00022739,2]
[342001383,1731355857257,-2243.38,0.00022739,2]
[342001384,1731355857269,-500.0,0.00022739,2]
[342001385,1731355857279,-500.0,0.00022739,2]
[342001386,1731355857288,-500.0,0.00022739,2]
[342001387,1731355857298,-500.0,0.00022739,2]
[342001388,1731355857307,-500.0,0.00022739,2]
[342001389,1731355857316,-500.0,0.00022739,2]
[342001390,1731355857325,-500.0,0.00022739,2]
[342001391,1731355857335,-500.0,0.00022739,2]
[342001392,1731355857344,-500.0,0.00022739,2]
[342001393,1731355857353,-151.0,0.00022739,7]
[342001394,1731355857363,-500.0,0.00022739,2]
[342001395,1731355857372,-500.0,0.00022739,2]
[342001396,1731355857381,-151.0,0.00022739,7]
[342001397,1731355857390,-500.0,0.00022739,2]
[342001398,1731355857399,-500.0,0.00022739,2]
[342001399,1731355857409,-500.0,0.00022739,2]
[342001400,1731355857421,-204.86,0.00022739,2]
[342001401,1731355857430,-1768.39,0.00022739,2]
[342001402,1731355857439,-500.0,0.00022739,2]
[342001403,1731355857448,-500.0,0.00022739,2]
[342001404,1731355857457,-848.08,0.00022739,2]
[342001405,1731355857466,-500.0,0.00022739,2]
[342001406,1731355857476,-265.093655,0.00022739,7]
[342001407,1731355857486,-265.093655,0.00022739,7]
[342001408,1731355857496,-265.093655,0.00022739,7]
[342001409,1731355857505,-265.093655,0.00022739,7]
[342001410,1731355857518,-557.33,0.00022739,2]
[342001411,1731355857527,-500.0,0.00022739,2]
[342001412,1731355857537,-1298.81,0.00022739,2]
[342001413,1731355857545,-578.39,0.00022739,2]
[342001414,1731355857554,-500.0,0.00022739,2]
[342001415,1731355857563,-198.744429,0.00022739,7]
[342001416,1731355857572,-198.744429,0.00022739,7]
[342001417,1731355857582,-500.0,0.00022739,2]
[342001418,1731355857590,-198.744429,0.00022739,7]
[342001419,1731355857599,-198.744429,0.00022739,7]
[342001420,1731355857608,-416.22170467,0.00022739,2]
[342001421,1731355857618,-398.98775593,0.00022739,2]
[342001422,1731355857627,-500.0,0.00022739,2]
[342001423,1731355857637,-1424.44,0.00022739,2]
[342001424,1731355857646,-500.0,0.00022739,2]
[342001425,1731355857655,-924.32,0.00022739,2]
[342001426,1731355857664,-538.71,0.00022739,2]
[342001427,1731355857673,-151.0,0.00022739,7]
[342001428,1731355857682,-151.0,0.00022739,7]
[342001429,1731355857691,-151.0,0.00022739,7]
[342001430,1731355857700,-151.0,0.00022739,7]
[342001431,1731355857709,-500.0,0.00022739,2]
[342001432,1731355857718,-866.81,0.00022739,2]
[342001433,1731355857727,-500.0,0.00022739,2]
[342001434,1731355857736,-258.965566,0.00022739,7]
[342001435,1731355857745,-3916.0,0.00022739,2]
[342001436,1731355857755,-258.965566,0.00022739,7]
[342001437,1731355857764,-500.0,0.00022739,2]
[342001438,1731355857776,-979.82,0.00022739,2]
[342001439,1731355857786,-258.965566,0.00022739,7]
[342001440,1731355857795,-258.965566,0.00022739,7]
[342001441,1731355857803,-773.57,0.00022739,2]
[342001442,1731355857812,-500.0,0.00022739,2]
[342001443,1731355857822,-627.61,0.00022739,2]
[342001444,1731355857831,-1423.21,0.00022739,2]
[342001445,1731355857841,-1410.09,0.00022739,2]
[342001446,1731355857850,-500.0,0.00022739,2]
[342001447,1731355857860,-1799.86,0.00022739,2]
[342001448,1731355857870,-500.0,0.00022739,2]
[342001449,1731355857879,-500.0,0.00022739,2]
[342001450,1731355857888,-500.0,0.00022739,2]
[342001451,1731355857897,-500.0,0.00022739,2]
[342001452,1731355857907,-500.0,0.00022739,2]
[342001453,1731355857920,-151.0,0.00022739,7]
[342001454,1731355857930,-500.0,0.00022739,2]
[342001455,1731355857939,-500.0,0.00022739,2]
[342001456,1731355857948,-500.0,0.00022739,2]
[342001457,1731355857958,-500.0,0.00022739,2]
[342001458,1731355857968,-502.17,0.00022739,2]
[342001459,1731355857977,-635.42,0.00022739,2]
[342001460,1731355857986,-500.0,0.00022739,2]
[342001461,1731355857998,-4457.62,0.00022739,2]
[342001462,1731355858008,-151.0,0.00022739,7]
[342001463,1731355858019,-151.0,0.00022739,7]
[342001464,1731355858028,-500.0,0.00022739,2]
[342001465,1731355858037,-1959.14,0.00022739,2]
[342001466,1731355858047,-151.0,0.00022739,7]
[342001467,1731355858056,-151.0,0.00022739,7]
[342001468,1731355858065,-500.0,0.00022739,2]
[342001469,1731355858075,-177.62509506,0.00022739,2]
[342001470,1731355858085,-220.254928,0.00022739,7]
[342001471,1731355858095,-797.46,0.00022739,2]
[342001472,1731355858104,-151.0,0.00022739,7]
[342001473,1731355858113,-151.0,0.00022739,7]
[342001474,1731355858123,-156.025031,0.00022739,7]
[342001475,1731355858132,-410.36937227,0.00022739,2]
[342001476,1731355858142,-1372.25,0.00022739,2]
[342001477,1731355858151,-151.0,0.00022739,7]
[342001478,1731355858161,-500.0,0.00022739,2]
[342001479,1731355858170,-533.77,0.00022739,2]
[342001480,1731355858180,-153.872684,0.00022739,7]
[342001481,1731355858189,-210.887696,0.00022739,7]
[342001482,1731355858198,-500.0,0.00022739,2]
[342001483,1731355858208,-775.44,0.00022739,2]
[342001484,1731355858218,-510.22692391,0.00022739,2]
[342001485,1731355858227,-210.887696,0.00022739,7]
[342001486,1731355858237,-1264.27,0.00022739,2]
[342001487,1731355858246,-414.34038927,0.00022739,2]
[342001488,1731355858255,-2436.92,0.00022739,2]
[342001489,1731355858264,-936.67,0.00022739,2]
[342001490,1731355858276,-500.0,0.00022739,2]
[342001491,1731355858285,-488.89939818,0.00022739,2]
[342001492,1731355858294,-151.0,0.00022739,7]
[342001493,1731355858303,-500.0,0.00022739,2]
[342001494,1731355858312,-500.0,0.00022739,2]
[342001495,1731355858322,-2021.65,0.00022739,2]
[342001496,1731355858331,-1853.63,0.00022739,2]
[342001497,1731355858339,-500.0,0.00022739,2]
[342001498,1731355858348,-500.0,0.00022739,2]
[342001499,1731355858358,-500.0,0.00022739,2]
[342001500,1731355858367,-500.0,0.00022739,2]
[342001501,1731355858376,-5738.72,0.00022739,2]
[342001502,1731355858386,-500.0,0.00022739,2]
[342001503,1731355858395,-500.0,0.00022739,2]
[342001504,1731355858404,-500.0,0.00022739,2]
[342001505,1731355858414,-500.0,0.00022739,2]
[342001506,1731355858423,-1021.15,0.00022739,2]
[342001507,1731355858432,-500.0,0.00022739,2]
[342001508,1731355858441,-643.62435138,0.00022739,2]
[342001509,1731355858450,-500.0,0.00022739,2]
[342001510,1731355858459,-500.0,0.00022739,2]
[342001511,1731355858469,-500.0,0.00022739,2]
[342001512,1731355858478,-500.0,0.00022739,2]
[342001513,1731355858488,-516.32771246,0.00022739,2]
[342001514,1731355858497,-500.0,0.00022739,2]
[342001515,1731355858507,-500.0,0.00022739,2]
[342001516,1731355858516,-500.0,0.00022739,2]
[342001517,1731355858527,-4862.85,0.00022739,2]
[342001518,1731355858536,-183.890743,0.00022739,2]
[342001519,1731355858545,-183.890743,0.00022739,2]
[342001520,1731355858554,-19539.58,0.00022739,2]
[342001521,1731355858563,-500.0,0.00022739,2]
[342001522,1731355858573,-500.0,0.00022739,2]
[342001523,1731355858582,-500.0,0.00022739,2]
[342001524,1731355858591,-23212.56198927,0.00022783,2]
[342001525,1731355858600,-150.05,0.000228,8]
[342001526,1731355858609,-150.05,0.000228,8]
[342001527,1731355858618,-150.05,0.000228,8]
[342001528,1731355858627,-291.01038071,0.000228,8]
[342001529,1731355858636,-1233.7525,0.000228,2]
[342001530,1731355858646,-500.0,0.000228,8]
[342001531,1731355858655,-150.05,0.000228,8]
[342001532,1731355858665,-150.05,0.000228,8]
[342001533,1731355858674,-150.05,0.000228,2]
[342001534,1731355858683,-500.0,0.000228,8]
[342001535,1731355858693,-297.24153813,0.000228,8]
[342001536,1731355858702,-500.0,0.000228,8]
[342001537,1731355858711,-150.05,0.000228,2]
[342001538,1731355858720,-500.0,0.000228,8]
[342001539,1731355858730,-551.595782,0.0002283,7]
[342001540,1731355858739,-551.595782,0.0002283,7]
[342001541,1731355858748,-1094.28,0.0002284,3]
[342001542,1731355858757,-547.14,0.0002284,3]
[342001543,1731355858766,-151.0,0.0002284,7]
[342001544,1731355858776,-245.854756,0.0002284,7]
[342001545,1731355858786,-151.0,0.0002284,7]
[342001546,1731355858795,-151.0,0.0002284,7]
[342001547,1731355858804,-1046.927828,0.0002284,7]
[342001548,1731355858813,-1046.927828,0.0002284,7]
[342001549,1731355858823,-347.700268,0.0002284,7]
[342001550,1731355858832,-347.700268,0.0002284,7]
[342001551,1731355858841,-151.0,0.0002284,7]
[342001552,1731355858850,-151.0,0.0002284,7]
[342001553,1731355858860,-151.0,0.0002284,7]
[342001554,1731355858869,-151.0,0.0002284,7]
[342001555,1731355858879,-151.0,0.0002284,7]
[342001556,1731355858888,-1000.0,0.00022842,2]
[342001557,1731355858897,-1000.0,0.00022842,2]
[342001558,1731355858907,-151.0,0.0002286,7]
[342001559,1731355858917,-151.0,0.0002286,7]
[342001560,1731355858928,-151.0,0.0002286,3]
[342001561,1731355858938,-151.0,0.0002286,7]
[342001562,1731355858947,-481.092244,0.0002286,7]
[342001563,1731355858956,-481.092244,0.0002286,7]
[342001564,1731355858966,-151.0,0.0002286,7]
[342001565,1731355858978,-151.0,0.0002286,7]
[342001566,1731355858987,-1377.32223151,0.00022919,2]
[342001567,1731355858998,-200.0,0.0002293,9]
[342001568,1731355859009,-166.666666,0.00022944,2]
[342001569,1731355859020,-242.18273179,0.00023,2]
[342001570,1731355859031,-151.0,0.00023013,7]
[342001571,1731355859040,-500.0,0.00023013,2]
[342001572,1731355859049,-500.0,0.00023013,2]
[342001573,1731355859058,-500.0,0.00023013,2]
[342001574,1731355859067,-500.0,0.00023013,2]
[342001575,1731355859077,-500.0,0.00023013,2]
[342001576,1731355859086,-500.0,0.00023013,2]
[342001577,1731355859096,-151.0,0.00023013,7]
[342001578,1731355859105,-204.035918,0.00023013,7]
[342001579,1731355859114,-500.0,0.00023013,2]
[342001580,1731355859123,-568.8,0.00023013,2]
[342001581,1731355859132,-151.0,0.00023013,7]
[342001582,1731355859141,-151.0,0.00023013,3]
[342001583,1731355859150,-151.0,0.00023013,7]
[342001584,1731355859160,-500.0,0.00023013,2]
[342001585,1731355859169,-500.0,0.00023013,2]
[342001586,1731355859178,-841.82,0.00023013,2]
[342001587,1731355859187,-500.0,0.00023013,2]
[342001588,1731355859196,-500.0,0.00023013,2]
[342001589,1731355859206,-500.0,0.00023013,2]
[342001590,1731355859216,-500.0,0.00023013,2]
[342001591,1731355859226,-500.0,0.00023013,2]
[342001592,1731355859235,-500.0,0.00023013,2]
[342001593,1731355859245,-500.0,0.00023013,2]
[342001594,1731355859366,-500.0,0.00023013,2]
[342001595,1731355859376,-500.0,0.00023013,2]
[342001596,1731355859386,-665.31,0.00023013,2]
[342001597,1731355859395,-500.0,0.00023013,2]
[342001598,1731355859404,-500.0,0.00023013,2]
[342001599,1731355859414,-500.0,0.00023013,2]
[342001600,1731355859424,-500.0,0.00023013,2]
[342001601,1731355859433,-500.0,0.00023013,2]
[342001602,1731355859444,-151.0,0.00023013,7]
[342001603,1731355859454,-481.092244,0.00023013,7]
[342001604,1731355859465,-319.95713284,0.00023013,2]
[342001605,1731355859476,-481.092244,0.00023013,7]
[342001606,1731355859486,-500.0,0.00023013,2]
[342001607,1731355859496,-2252.85,0.00023013,2]
[342001608,1731355859506,-500.0,0.00023013,2]
[342001609,1731355859515,-730.29,0.00023013,2]
[342001610,1731355859531,-1046.927828,0.00023013,7]
[342001611,1731355859541,-500.0,0.00023013,2]
[342001612,1731355859550,-1046.927828,0.00023013,7]
[342001613,1731355859560,-282.39398169,0.00023013,2]
[342001614,1731355859570,-347.700268,0.00023013,7]
[342001615,1731355859580,-551.595782,0.00023013,7]
[342001616,1731355859591,-500.0,0.00023013,2]
[342001617,1731355859600,-967.53,0.00023013,2]
[342001618,1731355859610,-500.0,0.00023013,2]
[342001619,1731355859620,-500.0,0.00023013,2]
[342001620,1731355859630,-151.0,0.00023013,7]
[342001621,1731355859640,-347.700268,0.00023013,7]
[342001622,1731355859650,-551.595782,0.00023013,7]
[342001623,1731355859659,-290.519407,0.00023013,7]